fUST/lending_fUST_20260329
["ID","MTS","AMOUNT","RATE_DAILY","PERIOD"]
[419037382,1774798859137,-156.46822404,0.00035301,120]
[419037383,1774798859172,-156.46822404,0.00035301,120]
[419037384,1774798859208,-156.46822404,0.00035301,120]
[419037385,1774798859242,-156.46822404,0.00035301,120]
[419037386,1774798859278,-176.93345,0.00035301,60]
[419037387,1774798859313,-3029.15621284,0.00035301,120]
[419037388,1774798859480,-213.60243545,0.00035301,120]
[419037389,1774798859516,-651.68020621,0.00035301,120]
[419037390,1774798859550,-223.0,0.00035301,120]
[419037391,1774798859582,-9892.04274115,0.00035301,31]
[419037392,1774798859614,-325.8401031,0.00035301,120]
[419037393,1774798859645,-365.81498239,0.00035301,30]
[419037394,1774798859676,-1998.63498579,0.00035301,120]
[419037395,1774798859707,-1038.63183222,0.00035301,30]
[419037396,1774798859738,-1154.04314296,0.00035301,120]
[419037397,1774798859768,-171.86973577,0.00035301,30]
[419037398,1774798859799,-269.74853668,0.00035301,120]
[419037399,1774798859830,-2167.47004048,0.00035301,60]
[419037400,1774798859861,-304.17540576,0.00035301,66]
[419037401,1774798859891,-213.44131032,0.00035301,120]
[419037402,1774798859921,-40082.62500356,0.00035301,30]
[419037403,1774798859953,-8586.24031611,0.00035301,31]
[419037404,1774798859984,-497.0,0.00035301,120]
[419037405,1774798860019,-415.25512341,0.00035301,120]
[419037406,1774798860054,-415.25512341,0.00035301,120]
[419037407,1774798860089,-415.25512341,0.00035301,120]
[419037408,1774798860125,-415.25512341,0.00035301,120]
[419037409,1774798860161,-415.25512341,0.00035301,120]
[419037410,1774798860197,-415.25512341,0.00035301,120]
[419037411,1774798860233,-415.25512341,0.00035301,120]
[419037412,1774798860269,-415.25512341,0.00035301,120]
[419037413,1774798860305,-415.25512341,0.00035301,120]
[419037414,1774798860342,-415.25512341,0.00035301,120]
[419037415,1774798860378,-415.25512341,0.00035301,120]
[419037416,1774798860413,-415.25512341,0.00035301,120]
[419037417,1774798860448,-415.25512341,0.00035301,120]
[419037418,1774798860484,-415.25512341,0.00035301,120]
[419037419,1774798860520,-207.62756169,0.00035301,120]
[419037420,1774798860556,-207.62756169,0.00035301,120]
[419037421,1774798860587,-509.37,0.00035301,120]
[419037422,1774798860620,-1519.8780224,0.00035301,60]
[419037423,1774798860664,-1000.0,0.00035301,30]
[419037424,1774798860695,-1000.0,0.00035301,30]
[419037425,1774798860726,-1000.0,0.00035301,30]
[419037426,1774798860757,-1000.0,0.00035301,30]
[419037427,1774798860787,-1000.0,0.00035301,30]
[419037428,1774798860816,-1738.989441,0.00035301,30]
[419037429,1774798861100,2363.33096786,0.00035301,30]
[419037430,1774798861136,30271.36466731,0.00035301,30]
[419037431,1774798861870,1317.0,0.00035301,30]
[419037432,1774798866429,740.01048864,0.00035301,30]
[419037433,1774798868697,-4718.09599011,0.000223,52]
[419037434,1774798868728,-200.6620385,0.00024,120]
[419037435,1774798868763,-5000.0,0.00024672,30]
[419037436,1774798868795,-5000.0,0.00024672,30]
[419037437,1774798868826,-5000.0,0.00024672,30]
[419037438,1774798868859,-780.77152529,0.00025,90]
[419037439,1774798868888,-171.98744337,0.00025,120]
[419037440,1774798868913,-442.54,0.00025,30]
[419037441,1774798868939,-155.9892544,0.00026,30]
[419037442,1774798868971,-5774.39877727,0.00026602,120]
[419037443,1774798869000,-442.54,0.00026715,30]
[419037444,1774798869033,-186.2866135,0.00027,120]
[419037445,1774798869063,-312.75434,0.00027,120]
[419037446,1774798869093,-5106.37985335,0.00027,120]
[419037447,1774798869130,-160.63242482,0.0002738,120]
[419037448,1774798869169,-1000.0,0.00028074,30]
[419037449,1774798869203,-244.0,0.00028074,30]
[419037450,1774798869234,-442.54,0.0002843,60]
[419037451,1774798869266,-294.97512377,0.000285,120]
[419037452,1774798869299,-158.0,0.00028645,30]
[419037453,1774798869331,-151.0,0.00028645,30]
[419037454,1774798869363,-161.0,0.00028645,30]
[419037455,1774798869395,-180.0,0.00028651,30]
[419037456,1774798869426,-192.88407619,0.0002876,120]
[419037457,1774798869459,-1444.0,0.00029041,120]
[419037458,1774798869492,-197.996704,0.0002939,60]
[419037459,1774798869525,-158.0,0.00029645,30]
[419037460,1774798869557,-151.0,0.00029645,30]
[419037461,1774798869589,-168.89520256,0.00029645,30]
[419037462,1774798869620,-180.0,0.00029651,30]
[419037463,1774798869654,-678.0,0.0003,120]
[419037464,1774798869686,-264.76811142,0.0003,120]
[419037465,1774798869716,-520.80720099,0.0003,30]
[419037466,1774798869747,-329.90451532,0.0003,120]
[419037467,1774798869777,-732.65133674,0.0003013,120]
[419037468,1774798869810,-442.54,0.00030145,60]
[419037469,1774798869842,-158.0,0.00030645,30]
[419037470,1774798869874,-151.0,0.00030645,30]
[419037471,1774798869904,-180.0,0.00030651,30]
[419037472,1774798869939,-1000.0,0.00030881,30]
[419037473,1774798869973,-492.0,0.00030881,30]
[419037474,1774798870006,-338.41973273,0.00031,120]
[419037475,1774798870039,-158.0,0.00031645,30]
[419037476,1774798870073,-151.0,0.00031645,30]
[419037477,1774798870105,-180.0,0.00031651,30]
[419037478,1774798870135,-160.0,0.00031671,48]
[419037479,1774798870166,-442.54,0.00031859,90]
[419037480,1774798870199,-600.0,0.00032,120]
[419037481,1774798870230,-1000.0,0.00032,120]
[419037482,1774798870263,-152.0,0.00032012,30]
[419037483,1774798870297,-1000.0,0.000326,120]
[419037484,1774798870330,-369.0,0.000326,120]
[419037485,1774798870364,-152.0,0.00032628,30]
[419037486,1774798870396,-158.0,0.00032645,30]
[419037487,1774798870428,-151.0,0.00032645,30]
[419037488,1774798870458,-180.0,0.00032651,30]
[419037489,1774798870492,-1480.0,0.00032876,120]
[419037490,1774798870525,-362.2,0.00032887,60]
[419037491,1774798870651,-1000.0,0.000329,120]
[419037492,1774798870684,-1000.0,0.000329,120]
[419037493,1774798870718,-362.2,0.00032987,60]
[419037494,1774798870748,-188.63100175,0.00033,120]
[419037495,1774798870783,-362.2,0.00033087,60]
[419037496,1774798870817,-1480.0,0.0003315,120]
[419037497,1774798870850,-362.2,0.00033187,60]
[419037498,1774798870881,-1000.0,0.000332,120]
[419037499,1774798870912,-1000.0,0.000332,120]
[419037500,1774798870943,-331.03023637,0.000332,117]
[419037501,1774798870975,-331.03023637,0.000332,117]
[419037502,1774798871007,-331.03023637,0.000332,117]
[419037503,1774798871038,-331.03023637,0.000332,117]
[419037504,1774798871070,-331.03023637,0.000332,117]
[419037505,1774798871102,-152.0,0.00033244,30]
[419037506,1774798871135,-362.2,0.00033287,60]
[419037507,1774798871166,-490.64,0.000333,120]
[419037508,1774798871198,-2009.36,0.000333,120]
[419037509,1774798871230,-170.73,0.000333,120]
[419037510,1774798871264,-362.2,0.00033387,60]
[419037511,1774798871297,-1480.0,0.00033424,120]
[419037512,1774798871331,-362.2,0.00033487,60]
[419037513,1774798871361,-1000.0,0.000335,120]
[419037514,1774798871392,-1000.0,0.000335,120]
[419037515,1774798871422,-442.54,0.00033574,90]
[419037516,1774798871455,-362.2,0.00033587,60]
[419037517,1774798871486,-158.0,0.00033645,30]
[419037518,1774798871518,-151.0,0.00033645,30]
[419037519,1774798871549,-180.0,0.00033651,30]
[419037520,1774798871584,-362.2,0.00033687,60]
[419037521,1774798871619,-1480.0,0.00033698,120]
[419037522,1774798871653,-362.2,0.00033787,60]
[419037523,1774798871685,-4141.27570268,0.00033788,60]
[419037524,1774798871716,-1181.33,0.000338,120]
[419037525,1774798871749,-1443.67,0.000338,120]
[419037526,1774798871779,-1000.0,0.000338,120]
[419037527,1774798871813,-179.27,0.000338,120]
[419037528,1774798871845,-1000.0,0.000338,120]
[419037529,1774798871877,-1614.4668,0.000338,30]
[419037530,1774798871907,-227.4561935,0.000338,30]
[419037531,1774798871939,-152.0,0.0003386,120]
[419037532,1774798871988,-362.2,0.00033887,60]
[419037533,1774798872026,-1000.0,0.0003397,30]
[419037534,1774798872063,-417.0,0.0003397,30]
[419037535,1774798872099,-1480.0,0.00033972,120]
[419037536,1774798872132,-1444.0,0.00033973,120]
[419037537,1774798872169,-362.2,0.00033987,60]
[419037538,1774798872203,-1000.0,0.00034,120]
[419037539,1774798872238,-362.2,0.00034087,60]
[419037540,1774798872271,-1000.0,0.000341,120]
[419037541,1774798872305,-1000.0,0.000341,120]
[419037542,1774798872341,-362.2,0.00034187,60]
[419037543,1774798872378,-1480.0,0.00034246,120]
[419037544,1774798872415,-362.2,0.00034287,60]
[419037545,1774798872449,-1595.1,0.000343,120]
[419037546,1774798872482,-1161.15,0.000343,120]
[419037547,1774798872515,-188.24,0.000343,120]
[419037548,1774798872551,-362.2,0.00034387,60]
[419037549,1774798872582,-1000.0,0.000344,120]
[419037550,1774798872613,-1000.0,0.000344,120]
[419037551,1774798872645,-152.0,0.00034476,120]
[419037552,1774798872679,-362.2,0.00034487,60]
[419037553,1774798872713,-1480.0,0.0003452,120]
[419037554,1774798872747,-362.2,0.00034587,60]
[419037555,1774798872780,-200.0,0.000346,120]
[419037556,1774798872812,-158.0,0.00034645,30]
[419037557,1774798872843,-151.0,0.00034645,30]
[419037558,1774798872874,-180.0,0.00034651,30]
[419037559,1774798872908,-362.2,0.00034687,60]
[419037560,1774798872939,-1000.0,0.000347,120]
[419037561,1774798872970,-1000.0,0.000347,120]
[419037562,1774798873004,-200.0,0.00034782,120]
[419037563,1774798873039,-362.2,0.00034787,60]
[419037564,1774798873073,-1480.0,0.00034794,120]
[419037565,1774798873105,-2894.06,0.000348,120]
[419037566,1774798873139,-362.2,0.00034887,60]
[419037567,1774798873172,-362.2,0.00034987,60]
[419037568,1774798873204,-200.0,0.00034992,120]
[419037569,1774798873238,-1000.0,0.00035,120]
[419037570,1774798873270,-1000.0,0.00035,120]
[419037571,1774798873306,-169.0,0.00035,120]
[419037572,1774798873338,-542.06600043,0.00035,120]
[419037573,1774798873373,-1480.0,0.00035068,120]
[419037574,1774798873410,-362.2,0.00035087,60]
[419037575,1774798873560,-152.0,0.00035092,120]
[419037576,1774798873597,-362.2,0.00035187,60]
[419037577,1774798873634,-362.2,0.00035287,60]
[419037578,1774798873667,-442.54,0.00035289,120]
[419037579,1774798873700,-158.0,0.00035289,120]
[419037580,1774798873733,-151.0,0.00035289,120]
[419037581,1774798873765,-161.0,0.00035289,120]
[419037582,1774798873797,-1000.0,0.000353,120]
[419037583,1774798873829,-1595.1,0.000353,120]
[419037584,1774798873860,-1443.66,0.000353,120]
[419037585,1774798873893,-789.0,0.00035301,30]
[419037586,1774798873950,-180.0,0.00035301,120]
[419037587,1774798873984,-1480.0,0.00035342,120]
[419037588,1774798874019,-362.2,0.00035387,60]
[419037589,1774798874053,-362.2,0.00035487,60]
[419037590,1774798874087,-169.0,0.000355,120]
[419037591,1774798874120,-362.2,0.00035587,60]
[419037592,1774798874152,-1000.0,0.000356,120]
[419037593,1774798874185,-1480.0,0.00035616,120]
[419037594,1774798874215,-1444.0,0.00035616,30]
[419037595,1774798874248,-362.2,0.00035687,60]
[419037596,1774798874280,-152.0,0.00035708,120]
[419037597,1774798874315,-362.2,0.00035787,60]
[419037598,1774798874348,-1181.33,0.000358,120]
[419037599,1774798874379,-2009.37,0.000358,120]
[419037600,1774798874413,-362.2,0.00035887,60]
[419037601,1774798874448,-1480.0,0.0003589,120]
[419037602,1774798874479,-1000.0,0.000359,120]
[419037603,1774798874510,-531.2,0.000359,120]
[419037604,1774798874543,-169.0,0.000359,120]
[419037605,1774798874577,-1131.4164,0.000359,30]
[419037606,1774798874611,-1324.239,0.000359,60]
[419037607,1774798874643,-1324.239,0.000359,60]
[419037608,1774798874675,-1324.23,0.000359,60]
[419037609,1774798874708,-161.29,0.000359,60]
[419037610,1774798874740,-531.2,0.000359,30]
[419037611,1774798874774,-282.17449729,0.00035932,120]
[419037612,1774798874810,-362.2,0.00035987,60]
[419037613,1774798874844,-1000.0,0.00036,120]
[419037614,1774798874880,-362.2,0.00036087,60]
[419037615,1774798874914,-1480.0,0.00036164,120]
[419037616,1774798874951,-362.2,0.00036187,60]
[419037617,1774798874983,-1000.0,0.000362,120]
[419037618,1774798875017,-362.2,0.00036287,60]
[419037619,1774798875049,-158.0,0.00036289,120]
[419037620,1774798875081,-151.0,0.00036289,120]
[419037621,1774798875112,-161.0,0.00036289,120]
[419037622,1774798875142,-490.64,0.000363,120]
[419037623,1774798875173,-180.0,0.00036301,120]
[419037624,1774798875213,-152.0,0.00036324,120]
[419037625,1774798875254,-362.2,0.00036387,60]
[419037626,1774798875288,-169.0,0.000364,120]
[419037627,1774798875321,-1480.0,0.00036438,120]
[419037628,1774798875357,-362.2,0.00036487,60]
[419037629,1774798875389,-1000.0,0.000365,120]
[419037630,1774798875425,-362.2,0.00036587,60]
[419037631,1774798875461,-362.2,0.00036687,60]
[419037632,1774798875496,-1480.0,0.00036712,120]
[419037633,1774798875530,-362.2,0.00036787,60]
[419037634,1774798875564,-1072.0,0.000368,120]
[419037635,1774798875600,-200.0,0.0003681,120]
[419037636,1774798875635,-362.2,0.00036887,60]
[419037637,1774798875669,-169.0,0.000369,120]
[419037638,1774798875705,-1564.0,0.000369,120]
[419037639,1774798875738,-168.0,0.000369,120]
[419037640,1774798875773,-938.0,0.000369,120]
[419037641,1774798875805,-170.0,0.000369,120]
[419037642,1774798875838,-563.0,0.000369,120]
[419037643,1774798875871,-338.0,0.000369,120]
[419037644,1774798875906,-203.0,0.000369,120]
[419037645,1774798875939,-174.0,0.000369,120]
[419037646,1774798875974,-175.0,0.000369,120]
[419037647,1774798876007,-152.0,0.00036939,120]
[419037648,1774798876041,-200.0,0.00036961,120]
[419037649,1774798876074,-1480.0,0.00036986,120]
[419037650,1774798876111,-362.2,0.00036987,60]
[419037651,1774798876142,-159.0,0.00037,120]
[419037652,1774798876178,-362.2,0.00037087,60]
[419037653,1774798876214,-362.2,0.00037187,60]
[419037654,1774798876247,-1480.0,0.0003726,120]
[419037655,1774798876281,-362.2,0.00037287,60]
[419037656,1774798876429,-158.0,0.00037289,120]
[419037657,1774798876465,-151.0,0.00037289,120]
[419037658,1774798876497,-161.0,0.00037289,120]
[419037659,1774798876531,-169.0,0.000373,120]
[419037660,1774798876566,-180.0,0.00037301,120]
[419037661,1774798876602,-362.2,0.00037387,60]
[419037662,1774798876637,-362.2,0.00037487,60]
[419037663,1774798876671,-557.98449649,0.00037534,120]
[419037664,1774798876703,-152.0,0.00037555,120]
[419037665,1774798876735,-200.0,0.00037582,120]
[419037666,1774798876768,-362.2,0.00037587,60]
[419037667,1774798876803,-362.2,0.00037687,60]
[419037668,1774798876839,-362.2,0.00037787,60]
[419037669,1774798876871,-169.0,0.000378,120]
[419037670,1774798876905,-362.2,0.00037887,60]
[419037671,1774798876938,-200.0,0.00037889,120]
[419037672,1774798876972,-362.2,0.00037987,60]
[419037673,1774798877005,-167.03516399,0.00038,120]
[419037674,1774798877037,-1000.0,0.00038,120]
[419037675,1774798877073,-362.2,0.00038087,60]
[419037676,1774798877103,-1898.29,0.000381,30]
[419037677,1774798877135,-635.783,0.000381,120]
[419037678,1774798877168,-292.18,0.000381,120]
[419037679,1774798877200,-1006.0782,0.000381,60]
[419037680,1774798877232,-152.0,0.00038171,120]
[419037681,1774798877267,-362.2,0.00038187,60]
[419037682,1774798877300,-169.0,0.000382,120]
[419037683,1774798877336,-362.2,0.00038287,60]
[419037684,1774798877369,-158.0,0.00038289,120]
[419037685,1774798877402,-151.0,0.00038289,120]
[419037686,1774798877435,-161.0,0.00038289,120]
[419037687,1774798877467,-180.0,0.00038301,120]
[419037688,1774798877514,-362.2,0.00038387,120]
[419037689,1774798877552,-1600.34336506,0.000384,120]
[419037690,1774798877587,-310.26102085,0.000384,120]
[419037691,1774798877621,-161.56341627,0.000384,120]
[419037692,1774798877655,-190.86385934,0.000384,120]
[419037693,1774798877688,-1779.55128175,0.000384,120]
[419037694,1774798877724,-362.2,0.00038487,120]
[419037695,1774798877756,-397.93825012,0.000385,120]
[419037696,1774798877788,-246.75815477,0.000385,120]
[419037697,1774798877822,-815.23626291,0.000385,120]
[419037698,1774798877855,-178.44112702,0.000385,120]
[419037699,1774798877888,-208.07874962,0.000385,120]
[419037700,1774798877920,-705.68441242,0.000385,120]
[419037701,1774798877953,-192.63469776,0.000385,120]
[419037702,1774798877985,-200.0,0.00038576,120]
[419037703,1774798878022,-362.2,0.00038587,120]
[419037704,1774798878058,-362.2,0.00038687,120]
[419037705,1774798878095,-169.0,0.000387,120]
[419037706,1774798878131,-1564.0,0.00038745,120]
[419037707,1774798878163,-168.0,0.00038745,120]
[419037708,1774798878197,-938.0,0.00038745,120]
[419037709,1774798878228,-170.0,0.00038745,120]
[419037710,1774798878260,-563.0,0.00038745,120]
[419037711,1774798878297,-338.0,0.00038745,120]
[419037712,1774798878333,-203.0,0.00038745,120]
[419037713,1774798878368,-174.0,0.00038745,120]
[419037714,1774798878403,-175.0,0.00038745,120]
[419037715,1774798878438,-152.0,0.00038787,120]
[419037716,1774798878473,-362.2,0.00038787,120]
[419037717,1774798878511,-362.2,0.00038887,120]
[419037718,1774798878543,-1444.0,0.00038904,90]
[419037719,1774798878581,-362.2,0.00038987,120]
[419037720,1774798878614,-159.0,0.00039,120]
[419037721,1774798878652,-362.2,0.00039087,120]
[419037722,1774798878686,-362.2,0.00039187,120]
[419037723,1774798878719,-169.0,0.000392,120]
[419037724,1774798878756,-362.2,0.00039287,120]
[419037725,1774798878789,-158.0,0.00039289,120]
[419037726,1774798878822,-151.0,0.00039289,120]
[419037727,1774798878854,-161.0,0.00039289,120]
[419037728,1774798878886,-180.0,0.00039301,120]
[419037729,1774798878921,-362.2,0.00039387,120]
[419037730,1774798878955,-152.0,0.00039403,120]
[419037731,1774798878990,-362.2,0.00039487,120]
[419037732,1774798879026,-362.2,0.00039587,120]
[419037733,1774798879060,-200.0,0.00039592,120]
[419037734,1774798879092,-1600.34336506,0.000396,120]
[419037735,1774798879125,-161.56341627,0.000396,120]
[419037736,1774798879157,-190.86385934,0.000396,120]
[419037737,1774798879189,-1779.55128175,0.000396,120]
[419037738,1774798879323,-397.93825012,0.000396,120]
[419037739,1774798879359,-246.75815477,0.000396,120]
[419037740,1774798879393,-815.23626291,0.000396,120]
[419037741,1774798879426,-178.44112702,0.000396,120]
[419037742,1774798879460,-705.68441242,0.000396,120]
[419037743,1774798879494,-192.63469776,0.000396,120]
[419037744,1774798879529,-169.0,0.000396,120]
[419037745,1774798879566,-362.2,0.00039687,120]
[419037746,1774798879603,-362.2,0.00039787,120]
[419037747,1774798879636,-1374.63092157,0.000398,120]
[419037748,1774798879674,-362.2,0.00039887,120]
[419037749,1774798879707,-151.15793164,0.000399,120]
[419037750,1774798879739,-2507.03017698,0.00039975,120]
[419037751,1774798879776,-362.2,0.00039987,120]
[419037752,1774798879813,-1148.80810813,0.0004,30]
[419037753,1774798879849,-5000.0,0.0004,120]
[419037754,1774798879882,-344.03290944,0.0004,120]
[419037755,1774798879915,-10000.0,0.0004,30]
[419037756,1774798879950,-1000.0,0.0004,120]
[419037757,1774798879981,-376.40520976,0.0004,120]
[419037758,1774798880013,-873.75143063,0.0004,120]
[419037759,1774798880045,-1390.0,0.0004,120]
[419037760,1774798880077,-152.0,0.00040019,120]
[419037761,1774798880112,-362.74156724,0.00040087,120]
[419037762,1774798880146,-169.0,0.000401,120]
[419037763,1774798880179,-200.0,0.00040181,120]
[419037764,1774798880213,-158.0,0.00040289,120]
[419037765,1774798880247,-151.0,0.00040289,120]
[419037766,1774798880281,-161.0,0.00040289,120]
[419037767,1774798880314,-449.0327,0.000403,120]
[419037768,1774798880346,-180.0,0.00040301,120]
[419037769,1774798880378,-1444.0,0.00040548,120]
[419037770,1774798880410,-169.0,0.000406,120]
[419037771,1774798880443,-152.0,0.00040635,120]
[419037772,1774798880477,-1564.0,0.00040682,120]
[419037773,1774798880509,-168.0,0.00040682,120]
[419037774,1774798880546,-938.0,0.00040682,120]
[419037775,1774798880580,-563.0,0.00040682,120]
[419037776,1774798880615,-338.0,0.00040682,120]
[419037777,1774798880648,-203.0,0.00040682,120]
[419037778,1774798880683,-174.0,0.00040682,120]
[419037779,1774798880718,-175.0,0.00040682,120]
[419037780,1774798880749,-1600.34336506,0.000408,120]
[419037781,1774798880780,-161.56341627,0.000408,120]
[419037782,1774798880814,-190.86385934,0.000408,120]
[419037783,1774798880846,-1779.55128175,0.000408,120]
[419037784,1774798880879,-397.93825012,0.000408,120]
[419037785,1774798880912,-246.75815477,0.000408,120]
[419037786,1774798880947,-178.44112702,0.000408,120]
[419037787,1774798880979,-815.23626291,0.000408,120]
[419037788,1774798881014,-705.68441242,0.000408,120]
[419037789,1774798881045,-192.63469776,0.000408,120]
[419037790,1774798881078,-200.0,0.0004095,120]
[419037791,1774798881111,-240.0,0.00040986,120]
[419037792,1774798881145,-240.0,0.00040986,120]
[419037793,1774798881178,-240.0,0.00040986,120]
[419037794,1774798881210,-220.0,0.00040986,87]
[419037795,1774798881245,-169.0,0.00041,120]
[419037796,1774798881278,-181.538637,0.00041096,120]
[419037797,1774798881310,-150.28641256,0.000411,120]
[419037798,1774798881343,-150.28641256,0.000411,120]
[419037799,1774798881376,-150.28641256,0.000411,120]
[419037800,1774798881409,-150.28641256,0.000411,120]
[419037801,1774798881444,-150.28641256,0.000411,120]
[419037802,1774798881479,-150.28,0.000411,120]
[419037803,1774798881512,-150.28641256,0.000411,120]
[419037804,1774798881549,-150.28641256,0.000411,120]
[419037805,1774798881583,-150.28641256,0.000411,120]
[419037806,1774798881619,-150.28641256,0.000411,120]
[419037807,1774798881651,-150.28641256,0.000411,120]
[419037808,1774798881685,-150.28641256,0.000411,120]
[419037809,1774798881721,-150.28641256,0.000411,120]
[419037810,1774798881755,-150.28641256,0.000411,120]
[419037811,1774798881788,-150.28641256,0.000411,120]
[419037812,1774798881820,-150.28641256,0.000411,120]
[419037813,1774798881851,-150.28641256,0.000411,120]
[419037814,1774798881884,-150.28641256,0.000411,120]
[419037815,1774798881915,-150.28641256,0.000411,120]
[419037816,1774798881956,-150.28,0.000411,120]
[419037817,1774798882124,-235.35,0.000411,120]
[419037818,1774798882158,-152.0,0.00041251,120]
[419037819,1774798882191,-300.0,0.00041288,30]
[419037820,1774798882225,-300.0,0.00041288,30]
[419037821,1774798882257,-158.0,0.00041289,120]
[419037822,1774798882289,-151.0,0.00041289,120]
[419037823,1774798882321,-161.0,0.00041289,120]
[419037824,1774798882352,-180.0,0.00041301,120]
[419037825,1774798882386,-300.0,0.00041315,30]
[419037826,1774798882418,-300.0,0.00041342,30]
[419037827,1774798882451,-169.0,0.000415,120]
[419037828,1774798882484,-500.0,0.00041642,30]
[419037829,1774798882514,-64560.39135006,0.000419,39]
[419037830,1774798882546,-169.0,0.000419,120]
[419037831,1774798882578,-200.0,0.00041964,120]
[419037832,1774798882609,-1600.34336506,0.00042,120]
[419037833,1774798882642,-161.56341627,0.00042,120]
[419037834,1774798882674,-1779.55128175,0.00042,120]
[419037835,1774798882705,-397.93825012,0.00042,120]
[419037836,1774798882737,-246.75815477,0.00042,120]
[419037837,1774798882769,-178.44112702,0.00042,120]
[419037838,1774798882801,-815.23626291,0.00042,120]
[419037839,1774798882832,-705.68441242,0.00042,120]
[419037840,1774798882864,-192.63469776,0.00042,120]
[419037841,1774798882895,-1000.0,0.00042,120]
[419037842,1774798882925,-500.0,0.00042192,30]
[419037843,1774798882956,-500.0,0.00042192,30]
[419037844,1774798882988,-200.0,0.00042199,120]
[419037845,1774798883021,-200.0,0.000422,120]
[419037846,1774798883053,-169.0,0.000424,120]
[419037847,1774798883084,-2150.738,0.00042497,40]
[419037848,1774798883117,-12140.4754855,0.000427,120]
[419037849,1774798883150,-1564.0,0.00042716,120]
[419037850,1774798883181,-168.0,0.00042716,120]
[419037851,1774798883214,-938.0,0.00042716,120]
[419037852,1774798883250,-563.0,0.00042716,120]
[419037853,1774798883285,-338.0,0.00042716,120]
[419037854,1774798883319,-203.0,0.00042716,120]
[419037855,1774798883353,-174.0,0.00042716,120]
[419037856,1774798883388,-456.361,0.00042887,120]
[419037857,1774798883421,-169.0,0.000429,120]
[419037858,1774798883456,-200.0,0.00042923,120]
[419037859,1774798883489,-154.94909084,0.00042999,65]
[419037860,1774798883520,-506.78,0.00043,120]
[419037861,1774798883554,-1506540.55369776,0.00043,30]
[419037862,1774798883588,-30902.12194999,0.00043,43]
[419037863,1774798883619,-1000.0,0.00043,30]
[419037864,1774798883652,-1000.0,0.00043,30]
[419037865,1774798883683,-1000.0,0.00043,30]
[419037866,1774798883716,-1000.0,0.00043,30]
[419037867,1774798883748,-502.4985003,0.00043,120]
[419037868,1774798883779,-1600.34336506,0.000432,120]
[419037869,1774798883814,-161.56341627,0.000432,120]
[419037870,1774798883847,-1779.55128175,0.000432,120]
[419037871,1774798883879,-397.93825012,0.000433,120]
[419037872,1774798883912,-246.75815477,0.000433,120]
[419037873,1774798883945,-815.23626291,0.000433,120]
[419037874,1774798883979,-705.68441242,0.000433,120]
[419037875,1774798884011,-169.0,0.000433,120]
[419037876,1774798884045,-1894.32661763,0.0004356,30]
[419037877,1774798884078,-3312.54648969,0.0004356,30]
[419037878,1774798884110,-2074.0,0.0004356,30]
[419037879,1774798884140,-451.0,0.00043561,30]
[419037880,1774798884172,-500.0,0.00043799,90]
[419037881,1774798884206,-164.06885719,0.00043799,90]